[Event "Early-Titled-Tuesday-Blitz-October-17-2023"]
[Site "Chess.com"]
[Date "2023.10.17"]
[Round "1"]
[White "profedechess93"]
[Black "itsdsyr"]
[Result "1-0"]
[WhiteElo "2609"]
[BlackElo "2283"]
[TimeControl "180+1"]
[EndTime "8:07:38 PDT"]
[Termination "profedechess93 won by checkmate"]

1. e4 {[%clk 0:02:59.7]} 1... e5 {[%clk 0:02:58.4]} 2. Nf3 {[%clk 0:03:00]} 2...
Nc6 {[%clk 0:02:57.8]} 3. Bc4 {[%clk 0:03:00.1]} 3... Bc5 {[%clk 0:02:57.7]} 4.
b4 {[%clk 0:02:59.6]} 4... Bxb4 {[%clk 0:02:57.5]} 5. c3 {[%clk 0:03:00.1]} 5...
Bd6 {[%clk 0:02:58.2]} 6. d4 {[%clk 0:03:00.8]} 6... Nf6 {[%clk 0:02:58.1]} 7.
O-O {[%clk 0:03:00.9]} 7... O-O {[%clk 0:02:54.3]} 8. Re1 {[%clk 0:03:01.1]}
8... b6 {[%clk 0:02:40.3]} 9. Nh4 {[%clk 0:02:59.1]} 9... Be7 {[%clk 0:02:36.1]}
10. Nf5 {[%clk 0:02:23.5]} 10... d6 {[%clk 0:02:28.2]} 11. Nxe7+ {[%clk
0:02:17.2]} 11... Nxe7 {[%clk 0:02:25.4]} 12. Bg5 {[%clk 0:02:14.5]} 12... Ng6
{[%clk 0:02:25.6]} 13. Nd2 {[%clk 0:02:10.2]} 13... h6 {[%clk 0:02:25.1]} 14.
Be3 {[%clk 0:02:09.5]} 14... Bb7 {[%clk 0:02:21.3]} 15. h3 {[%clk 0:02:08.8]}
15... Qe7 {[%clk 0:02:03.6]} 16. Qb3 {[%clk 0:02:05]} 16... Rad8 {[%clk
0:02:02.1]} 17. a4 {[%clk 0:02:03.6]} 17... Nxe4 {[%clk 0:01:57.1]} 18. Nxe4
{[%clk 0:02:02.3]} 18... Bxe4 {[%clk 0:01:58]} 19. Bc1 {[%clk 0:01:53.9]} 19...
Ba8 {[%clk 0:01:52.5]} 20. a5 {[%clk 0:01:45.8]} 20... Qf6 {[%clk 0:01:49]} 21.
axb6 {[%clk 0:01:42.2]} 21... axb6 {[%clk 0:01:49.9]} 22. Ra7 {[%clk 0:01:37.7]}
22... Rd7 {[%clk 0:01:23.3]} 23. Qa2 {[%clk 0:01:32.2]} 23... Bxg2 {[%clk
0:01:10.8]} 24. Kxg2 {[%clk 0:01:27.9]} 24... Nh4+ {[%clk 0:01:11.7]} 25. Kf1
{[%clk 0:01:22]} 25... exd4 {[%clk 0:01:10.1]} 26. cxd4 {[%clk 0:01:12.5]} 26...
Qxd4 {[%clk 0:01:03.4]} 27. Bb2 {[%clk 0:00:54.8]} 27... Qf4 {[%clk 0:00:59.6]}
28. Bd5 {[%clk 0:00:36.8]} 28... Nf3 {[%clk 0:00:51.6]} 29. Bc1 {[%clk
0:00:31.2]} 29... Qf5 {[%clk 0:00:43.4]} 30. Re3 {[%clk 0:00:30.5]} 30... Qxh3+
{[%clk 0:00:37.9]} 31. Ke2 {[%clk 0:00:27.4]} 31... Ng1+ {[%clk 0:00:38.3]} 32.
Kd1 {[%clk 0:00:25.3]} 32... Qg4+ {[%clk 0:00:37.4]} 33. Kc2 {[%clk 0:00:23]}
33... c6 {[%clk 0:00:16.1]} 34. Rxd7 {[%clk 0:00:15.3]} 34... Qxd7 {[%clk
0:00:17]} 35. Bb3 {[%clk 0:00:13.9]} 35... d5 {[%clk 0:00:16.7]} 36. Kb1 {[%clk
0:00:11.9]} 36... d4 {[%clk 0:00:15.4]} 37. Rg3 {[%clk 0:00:12.1]} 37... Ne2
{[%clk 0:00:15]} 38. Qxe2 {[%clk 0:00:11.3]} 38... d3 {[%clk 0:00:14.5]} 39. Qe5
{[%clk 0:00:11.4]} 39... g5 {[%clk 0:00:10]} 40. Bxg5 {[%clk 0:00:10.6]} 40...
Kh7 {[%clk 0:00:10.8]} 41. Bf6 {[%clk 0:00:09.9]} 41... Rg8 {[%clk 0:00:10.7]}
42. Rxg8 {[%clk 0:00:09.9]} 42... Kxg8 {[%clk 0:00:10.6]} 43. Qg3+ {[%clk
0:00:10.8]} 43... Kf8 {[%clk 0:00:10.1]} 44. Qg7+ {[%clk 0:00:11]} 44... Ke8
{[%clk 0:00:11]} 45. Qg8# {[%clk 0:00:11.9]} 1-0

[Event "Early-Titled-Tuesday-Blitz-October-17-2023"]
[Site "Chess.com"]
[Date "2023.10.17"]
[Round "1"]
[White "venturov"]
[Black "GothamChess"]
[Result "1-0"]
[WhiteElo "2437"]
[BlackElo "2699"]
[TimeControl "180+1"]
[EndTime "8:07:44 PDT"]
[Termination "venturov won on time"]

1. e4 {[%clk 0:02:59.2]} 1... c6 {[%clk 0:02:59.3]} 2. d4 {[%clk 0:02:52.5]}
2... d5 {[%clk 0:02:59.3]} 3. e5 {[%clk 0:02:52.9]} 3... c5 {[%clk 0:02:59.3]}
4. Nf3 {[%clk 0:02:53.2]} 4... Bg4 {[%clk 0:02:57.3]} 5. dxc5 {[%clk 0:02:53.3]}
5... e6 {[%clk 0:02:52.3]} 6. Bb5+ {[%clk 0:02:53]} 6... Nd7 {[%clk 0:02:50.8]}
7. b4 {[%clk 0:02:52.7]} 7... Ne7 {[%clk 0:02:45.7]} 8. Nbd2 {[%clk 0:02:46.1]}
8... Qc7 {[%clk 0:02:34.4]} 9. h3 {[%clk 0:02:44.1]} 9... Bh5 {[%clk 0:02:33.8]}
10. Bb2 {[%clk 0:02:42.9]} 10... Nc6 {[%clk 0:02:27.7]} 11. a3 {[%clk
0:02:25.9]} 11... Be7 {[%clk 0:02:24.5]} 12. Qe2 {[%clk 0:02:24.8]} 12... a5
{[%clk 0:02:13.3]} 13. Bxc6 {[%clk 0:02:22]} 13... Qxc6 {[%clk 0:01:56.7]} 14.
O-O {[%clk 0:02:18.7]} 14... Qa4 {[%clk 0:01:52.8]} 15. c3 {[%clk 0:02:08.7]}
15... O-O {[%clk 0:01:43.3]} 16. g4 {[%clk 0:02:00.9]} 16... Bg6 {[%clk
0:01:43.1]} 17. Nd4 {[%clk 0:02:01.5]} 17... h6 {[%clk 0:00:48]} 18. f4 {[%clk
0:01:58.5]} 18... Bh7 {[%clk 0:00:46.1]} 19. N2f3 {[%clk 0:01:54.5]} 19... Nb8
{[%clk 0:00:41.3]} 20. f5 {[%clk 0:01:54]} 20... Nc6 {[%clk 0:00:29.8]} 21. Nxc6
{[%clk 0:01:53]} 21... bxc6 {[%clk 0:00:26.3]} 22. Nd4 {[%clk 0:01:53]} 22...
Bg5 {[%clk 0:00:11.4]} 23. Qf2 {[%clk 0:01:38.2]} 23... Rae8 {[%clk 0:00:08.2]}
24. h4 {[%clk 0:01:37.4]} 24... Bd8 {[%clk 0:00:07.9]} 25. Rae1 {[%clk
0:01:32.4]} 25... Bc7 {[%clk 0:00:03.8]} 26. Qf4 {[%clk 0:01:29.9]} 26... Bd8
{[%clk 0:00:03.6]} 27. f6 {[%clk 0:01:29.3]} 27... Kh8 {[%clk 0:00:03.6]} 28. h5
{[%clk 0:01:25.5]} 28... Rg8 {[%clk 0:00:02.9]} 29. Kh1 {[%clk 0:01:20.1]} 29...
gxf6 {[%clk 0:00:03.2]} 30. exf6 {[%clk 0:01:18.6]} 30... Rg5 {[%clk 0:00:03.9]}
31. Nf3 {[%clk 0:01:17.1]} 31... Qc2 {[%clk 0:00:03.6]} 32. Nxg5 {[%clk
0:01:06.5]} 32... hxg5 {[%clk 0:00:04.5]} 33. Qf2 {[%clk 0:00:57.3]} 33... Be4+
{[%clk 0:00:04.9]} 34. Kg1 {[%clk 0:00:55.5]} 34... Qd3 {[%clk 0:00:05.6]} 35.
Re3 {[%clk 0:00:46.1]} 35... Qc4 {[%clk 0:00:05.7]} 36. Bc1 {[%clk 0:00:40.7]}
36... Bc7 {[%clk 0:00:05.7]} 37. Rxe4 {[%clk 0:00:38.9]} 37... Qxe4 {[%clk
0:00:06.6]} 38. Be3 {[%clk 0:00:34.5]} 38... Qe5 {[%clk 0:00:06.6]} 39. Bd4
{[%clk 0:00:32.6]} 39... Qe4 {[%clk 0:00:06.7]} 40. Qg2 {[%clk 0:00:30.1]} 40...
Qxg2+ {[%clk 0:00:04.8]} 41. Kxg2 {[%clk 0:00:30.6]} 41... e5 {[%clk 0:00:05.4]}
42. Be3 {[%clk 0:00:31]} 42... Rg8 {[%clk 0:00:03.9]} 43. Rf5 {[%clk 0:00:31]}
43... e4 {[%clk 0:00:02.6]} 44. Bxg5 {[%clk 0:00:26.9]} 44... axb4 {[%clk
0:00:02.6]} 45. axb4 {[%clk 0:00:25.3]} 45... Ra8 {[%clk 0:00:03.1]} 46. Be3
{[%clk 0:00:18.6]} 46... Ra2+ {[%clk 0:00:02.8]} 47. Rf2 {[%clk 0:00:18.5]}
47... Ra3 {[%clk 0:00:02.8]} 48. Bd4 {[%clk 0:00:18.9]} 48... Ra1 {[%clk
0:00:01.9]} 49. g5 {[%clk 0:00:19.3]} 49... Rb1 {[%clk 0:00:02.4]} 50. g6 {[%clk
0:00:19.2]} 50... Kg8 {[%clk 0:00:03]} 51. h6 {[%clk 0:00:17.9]} 51... e3 {[%clk
0:00:01.3]} 52. h7+ {[%clk 0:00:17.7]} 52... Kh8 {[%clk 0:00:01.8]} 53. gxf7
{[%clk 0:00:16.4]} 1-0

[Event "Early-Titled-Tuesday-Blitz-October-17-2023"]
[Site "Chess.com"]
[Date "2023.10.17"]
[Round "1"]
[White "szachmistrz2500"]
[Black "Sokoloco"]
[Result "0-1"]
[WhiteElo "2409"]
[BlackElo "2690"]
[TimeControl "180+1"]
[EndTime "8:07:45 PDT"]
[Termination "Sokoloco won on time"]

1. Nf3 {[%clk 0:03:00.9]} 1... d5 {[%clk 0:02:58.2]} 2. g3 {[%clk 0:03:00.7]}
2... Bg4 {[%clk 0:02:54]} 3. Bg2 {[%clk 0:03:01.4]} 3... Bxf3 {[%clk 0:02:54.2]}
4. Bxf3 {[%clk 0:03:00.9]} 4... e6 {[%clk 0:02:54.4]} 5. d3 {[%clk 0:02:56.4]}
5... Nf6 {[%clk 0:02:54.2]} 6. Nd2 {[%clk 0:02:55.6]} 6... c6 {[%clk 0:02:49.7]}
7. e4 {[%clk 0:02:55.3]} 7... Nbd7 {[%clk 0:02:50.1]} 8. Qe2 {[%clk 0:02:55]}
8... Bd6 {[%clk 0:02:45.1]} 9. c3 {[%clk 0:02:46.6]} 9... O-O {[%clk 0:02:44.4]}
10. O-O {[%clk 0:02:46]} 10... Re8 {[%clk 0:02:17.3]} 11. Bg2 {[%clk 0:02:33.6]}
11... dxe4 {[%clk 0:02:06.9]} 12. dxe4 {[%clk 0:02:32.3]} 12... e5 {[%clk
0:02:04.3]} 13. Nc4 {[%clk 0:02:31.7]} 13... Bc7 {[%clk 0:01:54.8]} 14. Rd1
{[%clk 0:02:30.9]} 14... Qe7 {[%clk 0:01:49.2]} 15. Be3 {[%clk 0:02:21.5]} 15...
Nc5 {[%clk 0:01:39.8]} 16. f3 {[%clk 0:02:09.7]} 16... b5 {[%clk 0:01:30.9]} 17.
Nd2 {[%clk 0:02:03.1]} 17... Red8 {[%clk 0:01:27.1]} 18. Nb3 {[%clk 0:02:02.6]}
18... Bb6 {[%clk 0:01:21.3]} 19. Qf2 {[%clk 0:01:55.9]} 19... Nfd7 {[%clk
0:01:03.6]} 20. Nxc5 {[%clk 0:01:52.6]} 20... Nxc5 {[%clk 0:01:04.5]} 21. Bf1
{[%clk 0:01:47.8]} 21... Na4 {[%clk 0:01:01.1]} 22. Bxb6 {[%clk 0:01:40.1]}
22... axb6 {[%clk 0:01:02]} 23. Kg2 {[%clk 0:01:28.7]} 23... h6 {[%clk
0:00:55.9]} 24. Bd3 {[%clk 0:01:23.3]} 24... Nc5 {[%clk 0:00:45.8]} 25. Bc2
{[%clk 0:01:22.7]} 25... Rxd1 {[%clk 0:00:46.1]} 26. Bxd1 {[%clk 0:01:22.6]}
26... Rd8 {[%clk 0:00:47]} 27. Bc2 {[%clk 0:01:19.1]} 27... Rd6 {[%clk
0:00:43.8]} 28. Rd1 {[%clk 0:01:13.6]} 28... Qd7 {[%clk 0:00:42.7]} 29. Rxd6
{[%clk 0:01:07.6]} 29... Qxd6 {[%clk 0:00:43.6]} 30. b4 {[%clk 0:01:03.4]} 30...
Nd7 {[%clk 0:00:41.1]} 31. Qe3 {[%clk 0:00:59.8]} 31... c5 {[%clk 0:00:34.5]}
32. a3 {[%clk 0:00:56.5]} 32... Kf8 {[%clk 0:00:18.8]} 33. Kf2 {[%clk
0:00:49.5]} 33... Qc6 {[%clk 0:00:18.3]} 34. Bb3 {[%clk 0:00:46.1]} 34... Ke7
{[%clk 0:00:15.6]} 35. Bd5 {[%clk 0:00:45.1]} 35... Qc7 {[%clk 0:00:16.1]} 36.
f4 {[%clk 0:00:43.2]} 36... Qa7 {[%clk 0:00:15.9]} 37. Bc6 {[%clk 0:00:36.1]}
37... Qxa3 {[%clk 0:00:13]} 38. Bxb5 {[%clk 0:00:30.7]} 38... cxb4 {[%clk
0:00:08.6]} 39. Bxd7 {[%clk 0:00:19.1]} 39... bxc3 {[%clk 0:00:04.6]} 40. Bc6
{[%clk 0:00:12.5]} 40... Qb2+ {[%clk 0:00:04.7]} 41. Kf3 {[%clk 0:00:06.9]}
41... c2 {[%clk 0:00:05.2]} 42. Qd3 {[%clk 0:00:07]} 42... g6 {[%clk 0:00:02.7]}
43. Qd7+ {[%clk 0:00:01.6]} 43... Kf8 {[%clk 0:00:03.2]} 0-1

[Event "Early-Titled-Tuesday-Blitz-October-17-2023"]
[Site "Chess.com"]
[Date "2023.10.17"]
[Round "1"]
[White "djokovic74"]
[Black "andrzej"]
[Result "0-1"]
[WhiteElo "2730"]
[BlackElo "2465"]
[TimeControl "180+1"]
[EndTime "8:07:48 PDT"]
[Termination "andrzej won by resignation"]

1. c4 {[%clk 0:02:59.5]} 1... e6 {[%clk 0:02:59.7]} 2. Nf3 {[%clk 0:02:59.6]}
2... d5 {[%clk 0:03:00.1]} 3. g3 {[%clk 0:02:59.6]} 3... Nf6 {[%clk 0:03:00.7]}
4. d4 {[%clk 0:02:59.6]} 4... dxc4 {[%clk 0:03:00.3]} 5. Bg2 {[%clk 0:02:58.7]}
5... c5 {[%clk 0:03:00.8]} 6. O-O {[%clk 0:02:57.8]} 6... Nc6 {[%clk 0:03:00.8]}
7. dxc5 {[%clk 0:02:58.2]} 7... Qxd1 {[%clk 0:03:00.9]} 8. Rxd1 {[%clk
0:02:58.9]} 8... Bxc5 {[%clk 0:03:01.5]} 9. Nbd2 {[%clk 0:02:59.5]} 9... c3
{[%clk 0:03:01.9]} 10. bxc3 {[%clk 0:03:00]} 10... O-O {[%clk 0:03:02.2]} 11.
Nb3 {[%clk 0:03:00]} 11... Be7 {[%clk 0:03:02.6]} 12. Nfd4 {[%clk 0:02:59.9]}
12... Nxd4 {[%clk 0:03:01]} 13. cxd4 {[%clk 0:02:57.5]} 13... Nd5 {[%clk
0:02:53]} 14. Bd2 {[%clk 0:02:56.6]} 14... f5 {[%clk 0:02:50.9]} 15. Na5 {[%clk
0:02:55.9]} 15... b6 {[%clk 0:02:50.8]} 16. Nc6 {[%clk 0:02:55.4]} 16... Bf6
{[%clk 0:02:51.1]} 17. e3 {[%clk 0:02:40]} 17... Bb7 {[%clk 0:02:50.5]} 18. Nb4
{[%clk 0:02:37.3]} 18... Rfc8 {[%clk 0:02:48.1]} 19. Nxd5 {[%clk 0:02:33.5]}
19... Bxd5 {[%clk 0:02:44.6]} 20. Bxd5 {[%clk 0:02:29.5]} 20... exd5 {[%clk
0:02:44.7]} 21. Rdc1 {[%clk 0:02:30.3]} 21... Kf7 {[%clk 0:02:39.7]} 22. Kf1
{[%clk 0:02:30.6]} 22... Ke6 {[%clk 0:02:39.3]} 23. Ke2 {[%clk 0:02:31.2]} 23...
Rc4 {[%clk 0:02:33.9]} 24. Rxc4 {[%clk 0:02:31]} 24... dxc4 {[%clk 0:02:34]} 25.
Rb1 {[%clk 0:02:18]} 25... Rb8 {[%clk 0:02:21.9]} 26. f3 {[%clk 0:02:03]} 26...
b5 {[%clk 0:02:16.2]} 27. Bc3 {[%clk 0:02:02.2]} 27... Kd5 {[%clk 0:02:02.7]}
28. g4 {[%clk 0:02:01.5]} 28... g6 {[%clk 0:02:00.2]} 29. gxf5 {[%clk
0:01:55.7]} 29... gxf5 {[%clk 0:02:00.2]} 30. Bb4 {[%clk 0:01:56.2]} 30... Rg8
{[%clk 0:01:46.3]} 31. Kf1 {[%clk 0:01:55]} 31... f4 {[%clk 0:01:28.8]} 32. e4+
{[%clk 0:01:47.9]} 32... Kxd4 {[%clk 0:01:28.8]} 33. Bd2 {[%clk 0:01:22.1]}
33... c3 {[%clk 0:00:55.8]} 34. Bxf4 {[%clk 0:01:19.3]} 34... Kc4 {[%clk
0:00:45.4]} 35. e5 {[%clk 0:01:08.9]} 35... Be7 {[%clk 0:00:45.7]} 36. Kf2
{[%clk 0:01:03.3]} 36... Bc5+ {[%clk 0:00:41.9]} 37. Be3 {[%clk 0:01:03.8]}
37... a5 {[%clk 0:00:28.3]} 38. f4 {[%clk 0:00:51.3]} 38... b4 {[%clk
0:00:27.1]} 39. Bxc5 {[%clk 0:00:48.6]} 39... Kxc5 {[%clk 0:00:26.9]} 40. Ke3
{[%clk 0:00:44.7]} 40... Kc4 {[%clk 0:00:22.8]} 41. f5 {[%clk 0:00:19.7]} 41...
Kd5 {[%clk 0:00:23]} 42. Kf4 {[%clk 0:00:18.9]} 42... c2 {[%clk 0:00:23.5]} 43.
Rc1 {[%clk 0:00:12.1]} 43... Rc8 {[%clk 0:00:22.9]} 44. f6 {[%clk 0:00:08.2]}
44... Ke6 {[%clk 0:00:22.5]} 45. Rg1 {[%clk 0:00:03.4]} 45... a4 {[%clk
0:00:19.9]} 46. Ke4 {[%clk 0:00:02.5]} 46... c1=Q {[%clk 0:00:19.2]} 47. Rxc1
{[%clk 0:00:03.2]} 47... Rxc1 {[%clk 0:00:20]} 0-1

[Event "Early-Titled-Tuesday-Blitz-October-17-2023"]
[Site "Chess.com"]
[Date "2023.10.17"]
[Round "1"]
[White "AlivodicDario"]
[Black "DreamsAreFake"]
[Result "0-1"]
[WhiteElo "2447"]
[BlackElo "2738"]
[TimeControl "180+1"]
[EndTime "8:07:49 PDT"]
[Termination "DreamsAreFake won by resignation"]

1. d4 {[%clk 0:02:58.6]} 1... Nf6 {[%clk 0:03:00.2]} 2. c4 {[%clk 0:02:59]} 2...
b6 {[%clk 0:03:01]} 3. Nc3 {[%clk 0:02:57.6]} 3... Bb7 {[%clk 0:03:01.7]} 4. Bg5
{[%clk 0:02:52.5]} 4... g6 {[%clk 0:02:46.3]} 5. d5 {[%clk 0:02:40.6]} 5... Bg7
{[%clk 0:02:44.6]} 6. e4 {[%clk 0:02:40.8]} 6... d6 {[%clk 0:02:42.6]} 7. Bd3
{[%clk 0:02:36.9]} 7... O-O {[%clk 0:02:41.7]} 8. Qd2 {[%clk 0:02:36.4]} 8...
Nbd7 {[%clk 0:02:37.3]} 9. Nge2 {[%clk 0:02:21.5]} 9... c6 {[%clk 0:02:31.9]}
10. h4 {[%clk 0:02:16.8]} 10... h5 {[%clk 0:02:22.1]} 11. Ng3 {[%clk 0:02:06.8]}
11... cxd5 {[%clk 0:02:19.1]} 12. cxd5 {[%clk 0:02:06.7]} 12... Rc8 {[%clk
0:02:18.9]} 13. Bh6 {[%clk 0:01:59.9]} 13... Ne5 {[%clk 0:02:16.7]} 14. Be2
{[%clk 0:01:58.3]} 14... Nc4 {[%clk 0:02:15.7]} 15. Qc1 {[%clk 0:01:56.4]} 15...
Bxh6 {[%clk 0:02:09.3]} 16. Qxh6 {[%clk 0:01:56]} 16... Nxb2 {[%clk 0:02:09.7]}
17. Bxh5 {[%clk 0:01:52.5]} 17... Rxc3 {[%clk 0:02:01.5]} 18. f3 {[%clk
0:01:39.3]} 18... Qc7 {[%clk 0:01:41.8]} 19. Bxg6 {[%clk 0:01:31.3]} 19... Nd3+
{[%clk 0:01:42]} 20. Kd1 {[%clk 0:01:19.9]} 20... Rc8 {[%clk 0:01:26.2]} 21. Bf5
{[%clk 0:00:44.6]} 21... Rc1+ {[%clk 0:01:22.8]} 22. Rxc1 {[%clk 0:00:40.5]}
22... Qxc1+ {[%clk 0:01:22]} 23. Qxc1 {[%clk 0:00:41.2]} 23... Rxc1+ {[%clk
0:01:22]} 24. Kd2 {[%clk 0:00:41.9]} 24... Rxh1 {[%clk 0:01:20.5]} 25. Nxh1
{[%clk 0:00:42.8]} 25... Nc5 {[%clk 0:01:15.6]} 26. Ke3 {[%clk 0:00:36]} 26...
b5 {[%clk 0:01:15.1]} 27. g4 {[%clk 0:00:22.5]} 27... a5 {[%clk 0:01:15]} 28.
Ng3 {[%clk 0:00:21.1]} 28... b4 {[%clk 0:01:13.2]} 29. g5 {[%clk 0:00:21.1]}
29... Ne8 {[%clk 0:01:11]} 30. h5 {[%clk 0:00:11.5]} 30... Ba6 {[%clk
0:01:07.8]} 31. h6 {[%clk 0:00:09.2]} 31... Bc4 {[%clk 0:01:07.9]} 32. g6 {[%clk
0:00:07.9]} 32... fxg6 {[%clk 0:00:58.7]} 33. Bxg6 {[%clk 0:00:08.8]} 33... Nf6
{[%clk 0:00:59.3]} 34. Nf5 {[%clk 0:00:06.2]} 34... e6 {[%clk 0:00:50.2]} 35.
Nxd6 {[%clk 0:00:04.2]} 35... Bxa2 {[%clk 0:00:50]} 36. Kd4 {[%clk 0:00:02]}
36... Ncd7 {[%clk 0:00:45.8]} 37. e5 {[%clk 0:00:02]} 37... Nh7 {[%clk
0:00:45.1]} 38. dxe6 {[%clk 0:00:02.4]} 38... Bxe6 {[%clk 0:00:44.8]} 39. f4
{[%clk 0:00:02.9]} 39... Ndf8 {[%clk 0:00:27.2]} 40. f5 {[%clk 0:00:02]} 40...
b3 {[%clk 0:00:27.7]} 41. Kc3 {[%clk 0:00:02]} 41... Bd5 {[%clk 0:00:23.4]} 42.
Bxh7+ {[%clk 0:00:01.5]} 42... Nxh7 {[%clk 0:00:17.3]} 43. e6 {[%clk 0:00:02.2]}
43... Kf8 {[%clk 0:00:17.7]} 44. Kb2 {[%clk 0:00:01.2]} 44... a4 {[%clk
0:00:17.3]} 45. Nb5 {[%clk 0:00:01.4]} 45... Ke7 {[%clk 0:00:15.9]} 46. Nc3
{[%clk 0:00:02.1]} 46... Bc6 {[%clk 0:00:16.3]} 47. Ne4 {[%clk 0:00:01.9]} 47...
Bxe4 {[%clk 0:00:16.1]} 48. Ka3 {[%clk 0:00:02.5]} 48... Bc6 {[%clk 0:00:16.4]}
49. Kb2 {[%clk 0:00:02.5]} 49... Kf6 {[%clk 0:00:16.7]} 50. Ka3 {[%clk
0:00:02.8]} 50... Kxf5 {[%clk 0:00:17.3]} 51. e7 {[%clk 0:00:03.5]} 51... Ke6
{[%clk 0:00:17.6]} 52. Kb2 {[%clk 0:00:04]} 52... Kxe7 {[%clk 0:00:17.8]} 0-1

[Event "Early-Titled-Tuesday-Blitz-October-17-2023"]
[Site "Chess.com"]
[Date "2023.10.17"]
[Round "1"]
[White "DefiantChair"]
[Black "Flaccidmoves"]
[Result "0-1"]
[WhiteElo "2673"]
[BlackElo "2423"]
[TimeControl "180+1"]
[EndTime "8:07:49 PDT"]
[Termination "Flaccidmoves won by checkmate"]

1. e4 {[%clk 0:02:59.5]} 1... g6 {[%clk 0:02:59.3]} 2. d4 {[%clk 0:02:58.6]}
2... Bg7 {[%clk 0:02:59.7]} 3. Nc3 {[%clk 0:02:58.3]} 3... d6 {[%clk 0:03:00.1]}
4. f4 {[%clk 0:02:58]} 4... Nf6 {[%clk 0:02:59.2]} 5. Nf3 {[%clk 0:02:57.5]}
5... O-O {[%clk 0:02:57.2]} 6. Bd3 {[%clk 0:02:57]} 6... c5 {[%clk 0:02:38.6]}
7. dxc5 {[%clk 0:02:57.9]} 7... dxc5 {[%clk 0:02:33.9]} 8. e5 {[%clk 0:02:57.6]}
8... Nd5 {[%clk 0:02:32.1]} 9. Nxd5 {[%clk 0:02:56.4]} 9... Qxd5 {[%clk
0:02:33]} 10. Qe2 {[%clk 0:02:57.1]} 10... Nc6 {[%clk 0:02:30.3]} 11. c3 {[%clk
0:02:55.8]} 11... Bf5 {[%clk 0:02:23.1]} 12. Bxf5 {[%clk 0:02:51.4]} 12... gxf5
{[%clk 0:02:24]} 13. Be3 {[%clk 0:02:50.9]} 13... b6 {[%clk 0:02:18.3]} 14. O-O
{[%clk 0:02:50.7]} 14... Kh8 {[%clk 0:02:14.2]} 15. Rad1 {[%clk 0:02:49.5]}
15... Qxa2 {[%clk 0:02:11]} 16. c4 {[%clk 0:02:36.7]} 16... Rad8 {[%clk
0:02:06.6]} 17. Ra1 {[%clk 0:02:20.1]} 17... Qb3 {[%clk 0:02:06]} 18. Ra3 {[%clk
0:02:16]} 18... Qb4 {[%clk 0:02:01.9]} 19. Qc2 {[%clk 0:02:01.9]} 19... Nd4
{[%clk 0:01:59.7]} 20. Bxd4 {[%clk 0:01:52.9]} 20... cxd4 {[%clk 0:01:59.7]} 21.
Qxf5 {[%clk 0:01:48]} 21... f6 {[%clk 0:01:46.3]} 22. Qd3 {[%clk 0:01:14.4]}
22... a5 {[%clk 0:01:38.6]} 23. Rb3 {[%clk 0:01:03.9]} 23... Qc5 {[%clk
0:01:38.3]} 24. Rb5 {[%clk 0:01:03.7]} 24... Qc6 {[%clk 0:01:38.2]} 25. Re1
{[%clk 0:00:58]} 25... fxe5 {[%clk 0:01:28.1]} 26. Ng5 {[%clk 0:00:46]} 26...
Qg6 {[%clk 0:01:27.2]} 27. Qxg6 {[%clk 0:00:42.2]} 27... hxg6 {[%clk 0:01:28.1]}
28. Ne6 {[%clk 0:00:42.2]} 28... exf4 {[%clk 0:01:10.9]} 29. Nxf8 {[%clk
0:00:33.8]} 29... Bxf8 {[%clk 0:00:47.5]} 30. Rd5 {[%clk 0:00:32.5]} 30... Rc8
{[%clk 0:00:37.8]} 31. Rxd4 {[%clk 0:00:31.3]} 31... e5 {[%clk 0:00:38]} 32.
Rde4 {[%clk 0:00:31.1]} 32... Bc5+ {[%clk 0:00:37.6]} 33. Kf1 {[%clk 0:00:30.8]}
33... Bd4 {[%clk 0:00:38.1]} 34. b3 {[%clk 0:00:29.9]} 34... a4 {[%clk
0:00:38.7]} 35. bxa4 {[%clk 0:00:27.4]} 35... Rxc4 {[%clk 0:00:38.8]} 36. Rb1
{[%clk 0:00:25.9]} 36... Rxa4 {[%clk 0:00:34.5]} 37. g3 {[%clk 0:00:26.4]} 37...
f3 {[%clk 0:00:32.1]} 38. Rxd4 {[%clk 0:00:10.4]} 38... Rxd4 {[%clk 0:00:29.5]}
39. Kf2 {[%clk 0:00:10.1]} 39... e4 {[%clk 0:00:28.3]} 40. Rxb6 {[%clk 0:00:10]}
40... Rd2+ {[%clk 0:00:28.3]} 41. Kf1 {[%clk 0:00:08.8]} 41... e3 {[%clk
0:00:28.1]} 42. Rb1 {[%clk 0:00:06.2]} 42... Rxh2 {[%clk 0:00:28]} 43. Kg1
{[%clk 0:00:06.6]} 43... Rg2+ {[%clk 0:00:28]} 44. Kh1 {[%clk 0:00:07]} 44...
Rxg3 {[%clk 0:00:27.6]} 45. Rb7 {[%clk 0:00:06.7]} 45... e2 {[%clk 0:00:26.4]}
46. Re7 {[%clk 0:00:06.3]} 46... f2 {[%clk 0:00:26.7]} 47. Kh2 {[%clk
0:00:06.7]} 47... Rg1 {[%clk 0:00:23.7]} 48. Rxe2 {[%clk 0:00:05.7]} 48... Rh1+
{[%clk 0:00:21]} 49. Kg3 {[%clk 0:00:04.4]} 49... f1=Q {[%clk 0:00:20.2]} 50.
Re8+ {[%clk 0:00:03]} 50... Kg7 {[%clk 0:00:20]} 51. Re7+ {[%clk 0:00:03.9]}
51... Kf6 {[%clk 0:00:20.1]} 52. Re3 {[%clk 0:00:02.3]} 52... Rg1+ {[%clk
0:00:19.7]} 53. Kh4 {[%clk 0:00:02.6]} 53... Qf4+ {[%clk 0:00:19.7]} 54. Kh3
{[%clk 0:00:03.4]} 54... Qg4+ {[%clk 0:00:19]} 55. Kh2 {[%clk 0:00:04.3]} 55...
Qg2# {[%clk 0:00:19]} 0-1